[Event "FIDE U16 Olympiad_boards_1-80"]
[Site "Eindhoven, Netherlands"]
[Date "2023.08.14"]
[Round "3.61"]
[White "Smeets, Kobe"]
[Black "Laamim, Roaa"]
[Result "1-0"]
[TimeControl "2700+10"]
[WhiteElo "2193"]
[BlackElo "1626"]

1. e4 {[%clk 00:45:18]} {[%emt 00:00:03]} e5 {[%clk 00:45:15]} {[%emt
00:00:05]} 2. Nf3 {[%clk 00:45:27]} {[%emt 00:00:01]} Nc6 {[%clk 00:45:24]}
{[%emt 00:00:01]} 3. Bb5 {[%clk 00:45:35]} {[%emt 00:00:01]} a6 {[%clk
00:45:33]} {[%emt 00:00:01]} 4. Ba4 {[%clk 00:45:45]} Nf6 {[%clk 00:45:39]}
{[%emt 00:00:05]} 5. O-O {[%clk 00:45:51]} {[%emt 00:00:04]} b5 {[%clk
00:45:47]} {[%emt 00:00:01]} 6. Bb3 {[%clk 00:45:59]} {[%emt 00:00:01]} d6
{[%clk 00:45:52]} {[%emt 00:00:06]} 7. a4 {[%clk 00:45:36]} {[%emt 00:00:33]}
Bb7 {[%clk 00:45:32]} {[%emt 00:00:31]} 8. Re1 {[%clk 00:45:32]} {[%emt
00:00:13]} Be7 {[%clk 00:45:35]} {[%emt 00:00:07]} 9. d3 {[%clk 00:45:06]}
{[%emt 00:00:35]} O-O {[%clk 00:45:18]} {[%emt 00:00:28]} 10. Nbd2 {[%clk
00:44:53]} {[%emt 00:00:23]} Nd7 {[%clk 00:43:59]} {[%emt 00:01:29]} 11. c3
{[%clk 00:45:02]} {[%emt 00:00:01]} Nc5 {[%clk 00:43:38]} {[%emt 00:00:31]} 12.
axb5 {[%clk 00:45:11]} {[%emt 00:00:01]} axb5 {[%clk 00:43:01]} {[%emt
00:00:47]} 13. Rxa8 {[%clk 00:45:19]} {[%emt 00:00:02]} Qxa8 {[%clk 00:43:09]}
{[%emt 00:00:01]} 14. Bc2 {[%clk 00:45:29]} b4 {[%clk 00:42:28]} {[%emt
00:00:52]} 15. d4 {[%clk 00:45:37]} {[%emt 00:00:01]} Nd7 {[%clk 00:39:47]}
{[%emt 00:02:51]} 16. Nf1 {[%clk 00:43:26]} {[%emt 00:02:20]} bxc3 {[%clk
00:37:19]} {[%emt 00:02:39]} 17. bxc3 {[%clk 00:43:35]} {[%emt 00:00:01]} Bf6
{[%clk 00:34:55]} {[%emt 00:02:33]} 18. Ng3 {[%clk 00:42:50]} {[%emt 00:00:56]}
Qa7 {[%clk 00:33:30]} {[%emt 00:01:35]} 19. Be3 {[%clk 00:42:46]} {[%emt
00:00:14]} Nb6 {[%clk 00:32:37]} {[%emt 00:01:03]} 20. d5 {[%clk 00:35:07]}
{[%emt 00:07:49]} Na5 {[%clk 00:30:33]} {[%emt 00:02:14]} 21. Nd2 {[%clk
00:35:16]} {[%emt 00:00:01]} Qa6 {[%clk 00:29:55]} {[%emt 00:00:48]} 22. Nh5
{[%clk 00:30:08]} {[%emt 00:05:17]} Nd7 {[%clk 00:25:24]} {[%emt 00:04:41]} 23.
Qg4 {[%clk 00:29:28]} {[%emt 00:00:50]} Bc8 {[%clk 00:24:35]} {[%emt 00:00:59]}
24. Nxg7 {[%clk 00:28:26]} {[%emt 00:01:13]} Kh8 {[%clk 00:19:23]} {[%emt
00:05:22]} 25. Nf5 {[%clk 00:28:33]} {[%emt 00:00:03]} Qb5 {[%clk 00:14:14]}
{[%emt 00:05:19]} 26. Rb1 {[%clk 00:25:31]} {[%emt 00:03:12]} Qa6 {[%clk
00:14:04]} {[%emt 00:00:20]} 27. Qh5 {[%clk 00:25:22]} {[%emt 00:00:18]} Nc5
{[%clk 00:10:56]} {[%emt 00:03:18]} 28. Bh6 {[%clk 00:24:49]} {[%emt 00:00:43]}
Bxf5 {[%clk 00:09:44]} {[%emt 00:01:23]} 29. Bxf8 {[%clk 00:23:21]} {[%emt
00:01:38]} Bg6 {[%clk 00:09:42]} {[%emt 00:00:12]} 30. Qf3 {[%clk 00:20:10]}
{[%emt 00:03:20]} Bg5 {[%clk 00:08:43]} {[%emt 00:01:10]} 31. Nf1 {[%clk
00:12:29]} {[%emt 00:07:50]} Qc8 {[%clk 00:06:21]} {[%emt 00:02:33]} 32. h4
{[%clk 00:12:34]} {[%emt 00:00:05]} Bxh4 {[%clk 00:05:19]} {[%emt 00:01:11]} 33.
Bh6 {[%clk 00:12:42]} {[%emt 00:00:02]} Nc4 {[%clk 00:04:26]} {[%emt 00:01:03]}
34. Qh3 {[%clk 00:11:28]} {[%emt 00:01:23]} Qxh3 {[%clk 00:04:32]} 35. Rb8+
{[%clk 00:11:14]} {[%emt 00:00:29]} 1-0

[Event "FIDE U16 Olympiad_boards_1-80"]
[Site "Eindhoven, Netherlands"]
[Date "2023.08.14"]
[Round "3.62"]
[White "Najimi, Mohamed Khalil"]
[Black "Labruyere, Roger"]
[Result "1-0"]
[TimeControl "2700+10"]
[WhiteElo "1812"]
[BlackElo "2181"]

1. e4 {[%clk 00:45:18]} {[%emt 00:00:01]} c6 {[%clk 00:45:19]} {[%emt
00:00:01]} 2. d4 {[%clk 00:45:26]} {[%emt 00:00:02]} d5 {[%clk 00:45:28]}
{[%emt 00:00:01]} 3. f3 {[%clk 00:45:35]} {[%emt 00:00:01]} g6 {[%clk
00:45:33]} {[%emt 00:00:05]} 4. c3 {[%clk 00:45:21]} {[%emt 00:00:24]} Bg7
{[%clk 00:45:26]} {[%emt 00:00:17]} 5. Be3 {[%clk 00:42:44]} {[%emt 00:02:47]}
dxe4 {[%clk 00:45:22]} {[%emt 00:00:14]} 6. fxe4 {[%clk 00:42:49]} {[%emt
00:00:05]} Nf6 {[%clk 00:45:31]} {[%emt 00:00:01]} 7. Nd2 {[%clk 00:40:43]}
{[%emt 00:02:17]} Ng4 {[%clk 00:45:36]} {[%emt 00:00:04]} 8. Qf3 {[%clk
00:39:17]} {[%emt 00:01:36]} Nxe3 {[%clk 00:45:40]} {[%emt 00:00:07]} 9. Qxe3
{[%clk 00:39:24]} {[%emt 00:00:03]} Bxd4 {[%clk 00:00:00]} {[%emt 00:02:59]} 10.
Qxd4 {[%clk 00:39:23]} {[%emt 00:00:11]} O-O {[%clk 00:45:15]} {[%emt
00:00:08]} 11. Qxd8 {[%clk 00:39:26]} {[%emt 00:00:07]} Rxd8 {[%clk 00:45:24]}
{[%emt 00:00:01]} 12. Bc4 {[%clk 00:39:09]} {[%emt 00:00:26]} Nd7 {[%clk
00:45:29]} {[%emt 00:00:05]} 13. Ngf3 {[%clk 00:38:59]} {[%emt 00:00:20]} e6
{[%clk 00:45:28]} {[%emt 00:00:12]} 14. b4 {[%clk 00:37:06]} {[%emt 00:02:03]}
a5 {[%clk 00:45:23]} {[%emt 00:00:15]} 15. O-O {[%clk 00:35:45]} {[%emt
00:01:31]} b5 {[%clk 00:42:51]} {[%emt 00:02:41]} 16. Be2 {[%clk 00:35:19]}
{[%emt 00:00:37]} Nb6 {[%clk 00:42:51]} {[%emt 00:00:09]} 17. Nb3 {[%clk
00:35:11]} {[%emt 00:00:18]} axb4 {[%clk 00:42:09]} {[%emt 00:00:52]} 18. cxb4
{[%clk 00:34:56]} {[%emt 00:00:25]} Bd7 {[%clk 00:42:13]} {[%emt 00:00:06]} 19.
Rfd1 {[%clk 00:34:27]} {[%emt 00:00:40]} Kf8 {[%clk 00:41:20]} {[%emt
00:01:02]} 20. Nc5 {[%clk 00:32:20]} {[%emt 00:02:17]} Ke7 {[%clk 00:41:21]}
{[%emt 00:00:09]} 21. Ne5 {[%clk 00:30:18]} {[%emt 00:02:12]} Be8 {[%clk
00:41:17]} {[%emt 00:00:13]} 22. Rxd8 {[%clk 00:29:45]} {[%emt 00:00:44]} Rxd8
{[%clk 00:41:21]} {[%emt 00:00:07]} 23. Rd1 {[%clk 00:29:32]} {[%emt 00:00:22]}
Ra8 {[%clk 00:41:28]} {[%emt 00:00:03]} 24. Rd2 {[%clk 00:28:54]} {[%emt
00:00:48]} f6 {[%clk 00:41:33]} {[%emt 00:00:05]} 25. Nf3 {[%clk 00:28:26]}
{[%emt 00:00:39]} e5 {[%clk 00:41:39]} {[%emt 00:00:03]} 26. Kf2 {[%clk
00:27:10]} {[%emt 00:01:27]} Bf7 {[%clk 00:41:41]} {[%emt 00:00:07]} 27. Nb3
{[%clk 00:26:32]} {[%emt 00:00:48]} Ra4 {[%clk 00:41:30]} {[%emt 00:00:21]} 28.
Na5 {[%clk 00:25:50]} {[%emt 00:00:52]} Be8 {[%clk 00:41:06]} {[%emt 00:00:34]}
29. Rb2 {[%clk 00:24:16]} {[%emt 00:01:44]} Ra3 {[%clk 00:39:50]} {[%emt
00:01:26]} 30. Rc2 {[%clk 00:22:57]} {[%emt 00:01:30]} Kd6 {[%clk 00:39:29]}
{[%emt 00:00:30]} 31. Nd2 {[%clk 00:22:25]} {[%emt 00:00:42]} g5 {[%clk
00:36:36]} {[%emt 00:03:03]} 32. Nb1 {[%clk 00:21:45]} {[%emt 00:00:51]} Ra4
{[%clk 00:36:41]} {[%emt 00:00:04]} 33. a3 {[%clk 00:21:01]} {[%emt 00:00:54]}
Nc4 {[%clk 00:34:30]} {[%emt 00:02:21]} 34. Bxc4 {[%clk 00:20:57]} {[%emt
00:00:14]} bxc4 {[%clk 00:34:39]} 35. Rxc4 {[%clk 00:21:00]} {[%emt 00:00:07]}
Kc7 {[%clk 00:34:23]} {[%emt 00:00:25]} 36. Nc3 {[%clk 00:20:38]} {[%emt
00:00:33]} Bf7 {[%clk 00:34:18]} {[%emt 00:00:15]} 37. Rxc6+ {[%clk 00:20:43]}
{[%emt 00:00:05]} 1-0

[Event "FIDE U16 Olympiad_boards_1-80"]
[Site "Eindhoven, Netherlands"]
[Date "2023.08.14"]
[Round "3.63"]
[White "Arnold, Rhys"]
[Black "Moayad, Anas"]
[Result "1-0"]
[TimeControl "2700+10"]
[WhiteElo "1803"]
[BlackElo "1757"]

1. e4 {[%clk 00:45:19]} c5 {[%clk 00:45:19]} {[%emt 00:00:02]} 2. Nf3 {[%clk
00:45:28]} {[%emt 00:00:01]} d6 {[%clk 00:45:29]} 3. Bb5+ {[%clk 00:45:37]}
{[%emt 00:00:02]} Nd7 {[%clk 00:45:34]} {[%emt 00:00:04]} 4. c4 {[%clk
00:45:46]} {[%emt 00:00:01]} g6 {[%clk 00:44:05]} {[%emt 00:01:38]} 5. Nc3
{[%clk 00:45:44]} {[%emt 00:00:13]} Bg7 {[%clk 00:44:13]} {[%emt 00:00:02]} 6.
d3 {[%clk 00:45:50]} {[%emt 00:00:04]} a6 {[%clk 00:43:45]} {[%emt 00:00:37]} 7.
Ba4 {[%clk 00:45:59]} {[%emt 00:00:01]} e6 {[%clk 00:42:57]} {[%emt 00:00:59]}
8. O-O {[%clk 00:45:58]} {[%emt 00:00:10]} Ne7 {[%clk 00:43:02]} {[%emt
00:00:05]} 9. Be3 {[%clk 00:45:31]} {[%emt 00:00:39]} O-O {[%clk 00:41:53]}
{[%emt 00:01:18]} 10. Qd2 {[%clk 00:45:34]} {[%emt 00:00:07]} b6 {[%clk
00:40:49]} {[%emt 00:01:14]} 11. d4 {[%clk 00:45:09]} {[%emt 00:00:35]} Qc7
{[%clk 00:38:02]} {[%emt 00:02:57]} 12. d5 {[%clk 00:43:34]} {[%emt 00:01:46]}
e5 {[%clk 00:36:22]} {[%emt 00:01:49]} 13. Bh6 {[%clk 00:43:41]} {[%emt
00:00:01]} Nf6 {[%clk 00:33:53]} {[%emt 00:02:40]} 14. h3 {[%clk 00:42:55]}
{[%emt 00:00:56]} Nh5 {[%clk 00:32:54]} {[%emt 00:01:10]} 15. Bxg7 {[%emt
00:01:33]} Kxg7 {[%clk 00:32:37]} {[%emt 00:00:24]} 16. Ne2 {[%clk 00:41:43]}
{[%emt 00:00:02]} h6 {[%clk 00:30:39]} {[%emt 00:02:07]} 17. Ne1 {[%clk
00:40:43]} {[%emt 00:01:10]} g5 {[%clk 00:29:03]} {[%emt 00:01:46]} 18. Nd3
{[%clk 00:39:13]} {[%emt 00:01:40]} Ng6 {[%clk 00:27:44]} {[%emt 00:01:29]} 19.
Rab1 {[%clk 00:37:49]} {[%emt 00:01:35]} a5 {[%clk 00:26:58]} {[%emt 00:00:56]}
20. Bc2 {[%clk 00:34:34]} {[%emt 00:03:25]} Qe7 {[%clk 00:25:14]} {[%emt
00:01:53]} 21. Ng3 {[%clk 00:33:59]} {[%emt 00:00:46]} Nhf4 {[%clk 00:23:45]}
{[%emt 00:01:38]} 22. Nxf4 {[%clk 00:33:59]} {[%emt 00:00:10]} gxf4 {[%clk
00:18:14]} {[%emt 00:05:41]} 23. Nf5+ {[%clk 00:33:53]} {[%emt 00:00:17]} Bxf5
{[%clk 00:18:20]} {[%emt 00:00:04]} 24. exf5 {[%clk 00:34:01]} Nh4 {[%clk
00:17:20]} {[%emt 00:01:10]} 25. Qd3 {[%clk 00:34:09]} {[%emt 00:00:03]} Qg5
{[%clk 00:10:50]} {[%emt 00:06:40]} 26. g3 {[%clk 00:34:16]} {[%emt 00:00:02]}
Kf6 {[%clk 00:10:05]} {[%emt 00:00:55]} 27. Kh2 {[%clk 00:31:02]} {[%emt
00:03:24]} Nxf5 {[%clk 00:09:54]} {[%emt 00:00:22]} 28. h4 {[%clk 00:31:06]}
{[%emt 00:00:06]} Qg4 {[%clk 00:07:10]} {[%emt 00:02:54]} 29. Bd1 {[%clk
00:31:11]} {[%emt 00:00:05]} f3 {[%clk 00:06:36]} {[%emt 00:00:44]} 30. Bxf3
{[%clk 00:30:49]} {[%emt 00:00:31]} Qd4 {[%clk 00:06:44]} {[%emt 00:00:03]} 31.
Qc2 {[%clk 00:30:29]} {[%emt 00:00:30]} Nxh4 {[%clk 00:05:39]} {[%emt
00:01:15]} 32. Be4 {[%clk 00:30:38]} {[%emt 00:00:01]} Nf3+ {[%clk 00:01:08]}
{[%emt 00:04:40]} 33. Bxf3 {[%clk 00:30:47]} {[%emt 00:00:02]} e4 {[%clk
00:00:47]} {[%emt 00:00:32]} 34. Qxe4 {[%clk 00:30:45]} {[%emt 00:00:11]} Qxe4
{[%clk 00:00:38]} {[%emt 00:00:19]} 35. Bxe4 {[%clk 00:30:53]} {[%emt
00:00:02]} Rae8 {[%clk 00:00:45]} {[%emt 00:00:03]} 36. f3 {[%clk 00:31:01]}
{[%emt 00:00:02]} Kg5 {[%clk 00:00:46]} {[%emt 00:00:09]} 37. f4+ {[%clk
00:30:47]} {[%emt 00:00:24]} Kh5 {[%clk 00:00:42]} {[%emt 00:00:13]} 38. Rbe1
{[%clk 00:30:42]} {[%emt 00:00:15]} f5 {[%clk 00:00:37]} {[%emt 00:00:16]} 39.
Bf3+ {[%clk 00:30:50]} {[%emt 00:00:01]} Kg6 {[%clk 00:00:46]} 40. Kg2 {[%clk
00:30:56]} {[%emt 00:00:05]} Kf6 {[%clk 00:00:18]} {[%emt 00:00:38]} 41. Kf2
{[%clk 00:31:02]} {[%emt 00:00:03]} Rd8 {[%clk 00:00:23]} {[%emt 00:00:05]} 42.
Re6+ {[%clk 00:31:11]} {[%emt 00:00:02]} Kg7 {[%clk 00:00:32]} 43. Rh1 {[%clk
00:31:13]} {[%emt 00:00:08]} Rh8 {[%clk 00:00:36]} {[%emt 00:00:06]} 44. Rh5
{[%clk 00:31:23]} a4 {[%clk 00:00:33]} {[%emt 00:00:15]} 45. Rxf5 {[%clk
00:31:24]} {[%emt 00:00:08]} b5 {[%clk 00:00:39]} {[%emt 00:00:04]} 46. cxb5
{[%clk 00:31:19]} {[%emt 00:00:14]} Rb8 {[%clk 00:00:48]} {[%emt 00:00:01]} 47.
Be2 {[%clk 00:31:24]} {[%emt 00:00:05]} Rhc8 {[%clk 00:00:47]} {[%emt
00:00:11]} 48. Rxd6 {[%clk 00:31:25]} {[%emt 00:00:10]} c4 {[%clk 00:00:56]}
{[%emt 00:00:01]} 49. Rc6 {[%clk 00:31:29]} {[%emt 00:00:06]} Rxc6 {[%clk
00:01:04]} {[%emt 00:00:02]} 50. bxc6 {[%clk 00:31:38]} {[%emt 00:00:02]} Rxb2
{[%clk 00:01:12]} {[%emt 00:00:01]} 51. c7 {[%emt 00:01:15]} 1-0

[Event "FIDE U16 Olympiad_boards_1-80"]
[Site "Eindhoven, Netherlands"]
[Date "2023.08.14"]
[Round "3.64"]
[White "Elharrak, Ahmed"]
[Black "Gergin, Isafara"]
[Result "1-0"]
[TimeControl "2700+10"]
[WhiteElo "1764"]
[BlackElo "1751"]

1. d4 {[%clk 00:45:17]} {[%emt 00:00:04]} Nf6 {[%clk 00:45:19]} {[%emt
00:00:02]} 2. c4 {[%clk 00:45:21]} {[%emt 00:00:05]} g6 {[%clk 00:45:27]}
{[%emt 00:00:02]} 3. Nc3 {[%clk 00:45:21]} {[%emt 00:00:10]} Bg7 {[%clk
00:45:34]} {[%emt 00:00:03]} 4. Nf3 {[%clk 00:44:38]} {[%emt 00:00:53]} O-O
{[%clk 00:45:31]} {[%emt 00:00:13]} 5. g3 {[%clk 00:44:38]} {[%emt 00:00:10]}
d6 {[%clk 00:45:22]} {[%emt 00:00:18]} 6. Bg2 {[%clk 00:44:47]} {[%emt
00:00:02]} Nbd7 {[%clk 00:45:27]} {[%emt 00:00:05]} 7. O-O {[%clk 00:41:13]}
{[%emt 00:03:44]} e5 {[%clk 00:45:04]} {[%emt 00:00:32]} 8. d5 {[%clk
00:34:38]} {[%emt 00:06:46]} a5 {[%clk 00:45:02]} {[%emt 00:00:12]} 9. Re1
{[%clk 00:30:23]} {[%emt 00:04:25]} Nc5 {[%clk 00:44:25]} {[%emt 00:00:46]} 10.
Nd2 {[%clk 00:27:36]} {[%emt 00:02:58]} Nfd7 {[%clk 00:41:32]} {[%emt
00:03:01]} 11. e4 {[%clk 00:20:42]} {[%emt 00:07:06]} f5 {[%clk 00:38:20]}
{[%emt 00:03:22]} 12. Nb3 {[%clk 00:20:25]} {[%emt 00:00:27]} Qf6 {[%clk
00:29:43]} {[%emt 00:08:46]} 13. f3 {[%clk 00:17:40]} {[%emt 00:02:55]} a4
{[%clk 00:22:52]} {[%emt 00:07:01]} 14. Nxc5 {[%clk 00:17:23]} {[%emt
00:00:28]} Nxc5 {[%clk 00:22:59]} {[%emt 00:00:03]} 15. Be3 {[%clk 00:14:48]}
{[%emt 00:02:45]} Bd7 {[%clk 00:19:23]} {[%emt 00:03:45]} 16. Qd2 {[%clk
00:12:17]} {[%emt 00:02:42]} b6 {[%clk 00:17:08]} {[%emt 00:02:25]} 17. Rad1
{[%clk 00:11:56]} {[%emt 00:00:31]} Qf7 {[%clk 00:10:57]} {[%emt 00:06:22]} 18.
Rf1 {[%clk 00:10:03]} {[%emt 00:02:02]} Qe7 {[%emt 00:04:45]} 19. Bg5 {[%clk
00:09:34]} Bf6 {[%clk 00:06:59]} {[%emt 00:00:12]} 20. Bxf6 {[%clk 00:07:22]}
{[%emt 00:02:22]} Qxf6 {[%clk 00:06:59]} {[%emt 00:00:09]} 21. Rfe1 {[%clk
00:07:12]} {[%emt 00:00:21]} f4 {[%clk 00:05:46]} {[%emt 00:01:23]} 22. g4
{[%clk 00:04:32]} {[%emt 00:02:51]} Kg7 {[%emt 00:02:17]} 23. Qf2 {[%clk
00:04:25]} Rh8 {[%clk 00:03:23]} {[%emt 00:00:41]} 24. h4 {[%emt 00:00:24]} h5
{[%clk 00:02:39]} {[%emt 00:00:54]} 25. g5 {[%clk 00:04:22]} Qd8 {[%clk
00:02:35]} {[%emt 00:00:13]} 26. Kf1 {[%clk 00:04:10]} {[%emt 00:00:22]} Rf8
{[%clk 00:02:24]} {[%emt 00:00:20]} 27. Ke2 {[%clk 00:04:20]} {[%emt 00:00:01]}
Qb8 {[%clk 00:02:12]} {[%emt 00:00:22]} 28. Kf1 {[%clk 00:02:47]} {[%emt
00:01:43]} b5 {[%clk 00:01:46]} {[%emt 00:00:36]} 29. cxb5 {[%clk 00:02:44]}
{[%emt 00:00:13]} Bxb5+ {[%clk 00:01:54]} {[%emt 00:00:01]} 30. Nxb5 {[%clk
00:02:54]} Qxb5+ {[%clk 00:02:01]} {[%emt 00:00:04]} 31. Kg1 {[%clk 00:03:03]}
{[%emt 00:00:01]} Rfb8 {[%clk 00:02:01]} {[%emt 00:00:10]} 32. Re2 {[%clk
00:01:26]} {[%emt 00:01:47]} Nd3 {[%clk 00:01:41]} {[%emt 00:00:30]} 33. Qf1
{[%clk 00:01:33]} {[%emt 00:00:03]} Nxb2 {[%clk 00:01:36]} {[%emt 00:00:14]} 34.
Rb1 {[%clk 00:01:14]} {[%emt 00:00:30]} a3 {[%clk 00:01:43]} {[%emt 00:00:03]}
35. Rc2 {[%clk 00:01:09]} {[%emt 00:00:16]} Qxf1+ {[%clk 00:01:02]} {[%emt
00:00:50]} 36. Bxf1 {[%clk 00:01:18]} {[%emt 00:00:02]} Rb7 {[%clk 00:00:43]}
{[%emt 00:00:28]} 37. Rbc1 {[%clk 00:00:47]} {[%emt 00:00:41]} Raa7 {[%clk
00:00:42]} {[%emt 00:00:10]} 38. Rc3 {[%clk 00:00:51]} {[%emt 00:00:07]} Kf8
{[%clk 00:00:34]} {[%emt 00:00:18]} 39. Bh3 {[%clk 00:00:57]} {[%emt 00:00:04]}
Ke7 {[%clk 00:00:39]} {[%emt 00:00:05]} 40. Bc8 {[%clk 00:00:36]} {[%emt
00:00:31]} Rb8 {[%clk 00:00:37]} {[%emt 00:00:13]} 41. Be6 {[%clk 00:00:44]}
Rbb7 {[%clk 00:00:35]} {[%emt 00:00:12]} 42. Kh1 {[%clk 00:00:24]} {[%emt
00:00:29]} Ke8 {[%clk 00:00:29]} {[%emt 00:00:18]} 43. Bc8 {[%clk 00:00:17]}
{[%emt 00:00:16]} Rb8 {[%clk 00:00:36]} {[%emt 00:00:02]} 44. Be6 {[%clk
00:00:27]} {[%emt 00:00:01]} Rbb7 {[%clk 00:00:43]} {[%emt 00:00:03]} 45. Bh3
{[%clk 00:00:19]} {[%emt 00:00:18]} Ke7 {[%clk 00:00:50]} {[%emt 00:00:03]} 46.
Kg1 {[%clk 00:00:25]} {[%emt 00:00:05]} Ke8 {[%clk 00:00:47]} {[%emt 00:00:12]}
47. Kf1 {[%clk 00:00:20]} {[%emt 00:00:15]} Ke7 {[%clk 00:00:47]} {[%emt
00:00:10]} 48. Ke2 {[%clk 00:00:15]} {[%emt 00:00:15]} Ke8 {[%clk 00:00:54]}
{[%emt 00:00:03]} 49. R1c2 {[%clk 00:00:19]} {[%emt 00:00:07]} Ke7 {[%clk
00:00:47]} {[%emt 00:00:17]} 50. Kd2 {[%clk 00:00:16]} {[%emt 00:00:12]} Ke8
{[%clk 00:00:54]} {[%emt 00:00:03]} 51. Be6 {[%clk 00:00:24]} {[%emt 00:00:02]}
Ke7 {[%clk 00:00:49]} {[%emt 00:00:15]} 52. Bg8 {[%clk 00:00:33]} {[%emt
00:00:01]} Kf8 {[%clk 00:00:44]} {[%emt 00:00:15]} 53. Be6 {[%clk 00:00:43]}
Ke7 {[%clk 00:00:52]} {[%emt 00:00:01]} 54. Bh3 {[%clk 00:00:51]} {[%emt
00:00:02]} Ke8 {[%clk 00:00:49]} {[%emt 00:00:13]} 55. Kc1 {[%clk 00:00:44]}
{[%emt 00:00:17]} Ke7 {[%clk 00:00:56]} {[%emt 00:00:02]} 56. Kd2 {[%clk
00:00:37]} {[%emt 00:00:17]} Ke8 {[%clk 00:01:03]} {[%emt 00:00:03]} 57. Bf1
{[%clk 00:00:19]} {[%emt 00:00:28]} Ke7 {[%clk 00:00:55]} {[%emt 00:00:18]} 58.
Bh3 {[%clk 00:00:17]} {[%emt 00:00:13]} Ke8 {[%clk 00:01:03]} 59. Bf1 {[%clk
00:00:27]} {[%emt 00:00:01]} Ke7 {[%clk 00:01:12]} {[%emt 00:00:02]} 60. Ke1
{[%clk 00:00:16]} {[%emt 00:00:19]} Ke8 {[%clk 00:00:53]} {[%emt 00:00:31]} 61.
Bh3 {[%clk 00:00:22]} {[%emt 00:00:03]} Ke7 {[%clk 00:01:01]} {[%emt 00:00:01]}
62. Kd2 {[%clk 00:00:20]} {[%emt 00:00:13]} Ke8 {[%clk 00:01:05]} {[%emt
00:00:07]} 63. Bc8 {[%clk 00:00:26]} {[%emt 00:00:03]} Rb8 {[%clk 00:01:00]}
{[%emt 00:00:15]} 64. Bh3 {[%clk 00:00:18]} {[%emt 00:00:19]} Rbb7 {[%clk
00:01:07]} {[%emt 00:00:02]} 65. Be6 {[%clk 00:00:22]} {[%emt 00:00:06]} Ke7
{[%clk 00:01:13]} {[%emt 00:00:04]} 66. Kc1 {[%clk 00:00:16]} {[%emt 00:00:16]}
Ke8 {[%clk 00:01:07]} {[%emt 00:00:16]} 67. Bc8 {[%clk 00:00:23]} {[%emt
00:00:03]} Rb8 {[%clk 00:01:15]} {[%emt 00:00:02]} 68. Bh3 {[%clk 00:00:32]}
Rbb7 {[%clk 00:01:23]} {[%emt 00:00:01]} 69. Bf1 {[%clk 00:00:14]} {[%emt
00:00:29]} Ke7 {[%clk 00:01:29]} {[%emt 00:00:04]} 70. Bh3 {[%clk 00:00:20]}
{[%emt 00:00:05]} Ke8 {[%clk 00:01:37]} {[%emt 00:00:01]} 71. Bf1 {[%clk
00:00:17]} {[%emt 00:00:13]} Ke7 {[%clk 00:01:46]} 72. Rc6 {[%clk 00:00:20]}
{[%emt 00:00:07]} Na4 {[%clk 00:00:39]} {[%emt 00:01:17]} 73. Ba6 {[%clk
00:00:30]} Rb6 {[%clk 00:00:16]} {[%emt 00:00:33]} 74. Rxc7+ {[%clk 00:00:38]}
{[%emt 00:00:02]} Rxc7 {[%clk 00:00:25]} {[%emt 00:00:01]} 75. Rxc7+ {[%clk
00:00:48]} Kd8 {[%clk 00:00:33]} {[%emt 00:00:02]} 76. Rc8+ {[%clk 00:00:40]}
{[%emt 00:00:17]} Kd7 {[%clk 00:00:18]} {[%emt 00:00:26]} 77. Ra8 {[%clk
00:00:49]} Nc5 {[%clk 00:00:13]} {[%emt 00:00:16]} 78. Bc8+ {[%clk 00:00:50]}
{[%emt 00:00:09]} Kd8 {[%clk 00:00:13]} {[%emt 00:00:10]} 79. Bf5+ {[%clk
00:00:49]} {[%emt 00:00:10]} Ke7 {[%clk 00:00:16]} {[%emt 00:00:08]} 80. Bxg6
{[%clk 00:00:58]} Nd3+ {[%clk 00:00:16]} {[%emt 00:00:10]} 81. Kd2 {[%clk
00:00:54]} {[%emt 00:00:14]} Nb2 {[%clk 00:00:11]} {[%emt 00:00:15]} 82. Bxh5
{[%clk 00:00:56]} {[%emt 00:00:09]} Nc4+ {[%clk 00:00:19]} {[%emt 00:00:02]} 83.
Kc3 {[%clk 00:00:59]} {[%emt 00:00:06]} Ne3 {[%clk 00:00:21]} {[%emt 00:00:08]}
84. g6 {[%clk 00:00:47]} {[%emt 00:00:22]} Kf6 {[%clk 00:00:13]} {[%emt
00:00:18]} 85. Ra7 {[%clk 00:00:52]} {[%emt 00:00:06]} Rb8 {[%clk 00:00:18]}
{[%emt 00:00:04]} 86. Rf7# {[%clk 00:00:56]} {[%emt 00:00:06]} 1-0